bitfinex/quotes_ETHUSD_20251019
["timestamp","ask_amount","ask_price","bid_price","bid_amount"]
[1760869814260,2.53808789,3940.0,3938.7,0.1091]
[1760869814398,0.2316,3940.2,3938.8,2.53880935]
[1760869814733,2.53813828,3939.9,3938.7,0.1091]
[1760869814900,2.53813828,3939.9,3938.7,2.64799948]
[1760869815095,2.53820754,3939.8,3938.7,2.64799948]
[1760869815296,0.2141,3939.9,3938.8,2.53884431]
[1760869815499,0.2141,3939.8,3938.7,0.1091]
[1760869815720,2.53879901,3938.9,3937.5,0.3445]
[1760869815898,0.4373,3939.4,3937.6,2.853]
[1760869816537,1.9421,3939.8,3937.6,2.853]
[1760869816538,2.53828898,3939.7,3938.2,2.53916915]
[1760869816702,2.53843471,3939.5,3938.3,2.64825801]
[1760869816904,0.6514,3939.8,3938.3,0.1091]
[1760869817112,0.2141,3939.8,3938.8,2.53883758]
[1760869817537,0.2141,3939.8,3938.7,2.852]
[1760869817723,2.53801726,3940.1,3938.9,2.53876047]
[1760869817930,2.53801726,3940.1,3938.7,2.852]
[1760869818128,0.2316,3940.2,3938.7,2.852]
[1760869818309,2.53800664,3940.1,3938.9,2.53875885]
[1760869818508,0.2316,3940.2,3938.7,2.852]
[1760869818828,0.1264,3939.9,3939.3,0.1264]
[1760869819025,0.2316,3940.9,3939.5,2.53836484]
[1760869819026,2.75180634,3940.6,3939.5,2.53836484]
[1760869819225,0.6514,3940.6,3939.6,0.23091158]
[1760869819526,0.6514,3940.6,3938.9,2.53877525]
[1760869819527,2.53805166,3940.1,3939.7,0.23091158]
[1760869819704,2.53808679,3940.0,3939.8,0.23091158]
[1760869819905,2.975317,3940.1,3939.0,5.38769588]
[1760869820244,2.53784906,3940.4,3939.2,2.53858651]
[1760869820550,0.4373,3940.8,3939.7,2.53824794]
[1760869820551,2.53757365,3940.8,3939.7,2.53824794]
[1760869820716,2.53757365,3940.8,3939.3,0.23102633]
[1760869820717,0.2141,3940.9,3939.8,0.23102633]
[1760869820941,0.2141,3941.3,3939.9,0.23102633]
[1760869821275,0.2141,3941.3,3940.3,2.53786443]
[1760869821434,0.2141,3941.3,3940.4,0.23102633]
[1760869821633,0.2141,3941.3,3940.5,0.23102633]
[1760869821863,0.2141,3941.3,3940.6,0.23102633]
[1760869822063,0.2141,3941.3,3940.7,0.23102633]
[1760869822365,2.53742006,3941.1,3940.2,2.85]
[1760869822576,0.001,3941.8,3940.3,0.23102349]
[1760869822867,2.53728986,3941.3,3940.4,0.23102349]
[1760869823044,0.4373,3941.5,3940.5,0.23102349]
[1760869823240,0.4373,3941.5,3940.2,2.85]
[1760869823241,0.4373,3941.5,3940.6,0.23102349]
[1760869823538,0.31991895,3941.8,3940.7,0.23102349]
[1760869823750,0.001,3941.8,3940.8,0.23102349]
[1760869823954,2.53722587,3941.4,3940.9,0.23102349]
[1760869824154,2.53723889,3941.3,3941.0,0.23102349]
[1760869824336,2.53723889,3941.3,3940.3,2.53787069]
[1760869824699,0.001,3941.8,3940.4,0.23093722]
[1760869824830,0.001,3941.8,3941.2,0.1091]
[1760869825027,0.001,3941.8,3941.3,3.07593722]
[1760869825269,0.001,3941.8,3941.4,0.23093722]
[1760869825482,0.001,3941.8,3941.5,0.23093722]
[1760869825678,0.001,3941.8,3941.6,0.23093722]
[1760869825857,0.001,3941.8,3941.7,0.23093722]
[1760869826168,0.001,3941.8,3941.4,0.23093722]
[1760869826345,2.53792087,3941.8,3940.7,0.1091]
[1760869826528,0.25479209,3941.8,3940.8,3.07171623]
[1760869826732,2.53791254,3941.8,3940.9,0.23071623]
[1760869826933,2.53791254,3941.8,3940.8,2.79171623]
[1760869827238,0.001,3941.8,3940.8,2.79171623]
[1760869827636,2.53703957,3941.7,3940.8,2.79171623]
[1760869827847,0.001,3941.8,3940.8,2.79171623]
[1760869828033,0.001,3941.8,3940.9,0.3445]
[1760869828371,0.001,3941.8,3940.8,2.79171623]
[1760869828753,2.53703846,3941.7,3940.8,2.79171623]
[1760869828957,0.1264,3941.4,3940.8,2.91811623]
[1760869829158,0.001,3941.8,3940.9,0.02537491]
[1760869829360,0.001,3941.8,3941.0,0.02537426]
[1760869829572,0.001,3941.8,3938.9,0.6336]
[1760869829573,0.2141,3940.9,3936.7,0.109]
[1760869829795,0.2141,3940.9,3937.2,0.109]
[1760869829796,0.6336,3938.9,3937.2,0.109]
[1760869829955,2.53916893,3938.3,3937.4,0.507]
[1760869830160,2.53861171,3939.2,3937.4,0.507]
[1760869830161,2.53908427,3938.5,3937.4,0.507]
[1760869830379,4.29253779,3938.4,3937.4,0.507]
[1760869830581,0.3981838,3940.4,3937.4,0.507]
[1760869830767,0.6336,3939.8,3936.8,0.002]
[1760869830970,0.6336,3939.6,3937.4,0.251]
[1760869831197,4.26702976,3938.6,3937.4,0.251]
[1760869831397,1.728,3938.4,3937.5,2.865]
[1760869831565,2.53923668,3938.2,3937.5,2.865]
[1760869831762,0.02537441,3938.1,3937.5,2.865]
[1760869831998,2.53910819,3938.4,3937.6,2.863]
[1760869832210,1.75337441,3938.3,3937.6,2.863]
[1760869832399,0.02537441,3938.3,3937.6,2.863]
[1760869832605,2.53930634,3938.1,3937.6,2.863]
[1760869832774,1.728,3938.6,3937.6,2.861]
[1760869832775,1.728,3937.8,3937.6,2.861]
[1760869832972,0.02537441,3937.7,3937.6,2.861]
[1760869833198,2.53969143,3937.5,3937.1,0.002]
[1760869833501,2.56512145,3937.4,3937.1,0.002]
[1760869833704,4.98693359,3937.4,3937.1,0.002]
[1760869834059,4.29312145,3937.4,3937.1,0.002]
[1760869834265,2.19067441,3937.4,3937.1,0.002]
[1760869834466,1.75337441,3937.4,3937.1,0.002]
[1760869835078,0.4675,3938.4,3937.1,0.002]
[1760869835275,0.2341,3938.2,3937.1,0.002]
[1760869835576,1.728,3938.0,3937.1,0.002]
[1760869835777,0.02537441,3938.3,3937.1,0.002]
[1760869836062,0.02537441,3938.6,3937.1,0.002]
[1760869836339,1.728,3938.3,3937.1,0.002]
[1760869836629,0.02537441,3938.2,3937.2,2.53985808]
[1760869836831,0.02537441,3938.2,3937.1,0.002]
[1760869836995,1.728,3938.1,3937.2,2.53985917]
[1760869837197,0.02537441,3938.0,3937.1,0.002]
[1760869837431,2.53922351,3938.3,3937.1,0.002]
[1760869837637,0.96634676,3938.2,3937.1,0.002]
[1760869837807,1.728,3938.1,3937.1,0.002]
[1760869838008,1.728,3938.1,3937.2,2.53983831]
[1760869838193,0.2141,3938.7,3937.1,0.002]
[1760869838399,0.02537441,3938.6,3937.2,2.53987178]
[1760869838631,0.02537441,3938.9,3937.2,2.53987178]
[1760869838801,0.02537441,3938.9,3937.1,0.111]
[1760869839231,0.4675,3938.8,3937.1,0.002]
[1760869839433,2.1955,3938.8,3937.1,0.002]
[1760869839634,0.2341,3939.0,3937.1,0.002]
[1760869839635,0.1264,3938.4,3937.7,0.1264]
[1760869839931,0.1264,3938.4,3937.9,2.53942126]
[1760869840099,0.2341,3939.0,3937.2,2.53985085]
[1760869840300,0.2341,3939.0,3937.1,0.002]
[1760869840301,0.2341,3939.0,3937.4,0.109]
[1760869840541,0.2341,3939.0,3933.2,1.27575823]
[1760869840542,7.61962815,3937.2,3933.2,1.27575823]
[1760869840834,0.2341,3933.3,3931.9,1.7]
[1760869841033,1.54429908,3933.2,3931.9,1.7]
[1760869841200,0.6336,3933.5,3933.1,0.13281486]
[1760869841401,0.02537441,3933.4,3931.9,1.7]
[1760869841620,0.02537441,3933.4,3932.0,0.2456]
[1760869841839,0.2341,3935.1,3932.0,0.2456]
[1760869842048,0.4675,3935.2,3932.0,0.2456]
[1760869842266,0.2341,3937.0,3932.1,0.6336]
[1760869842267,0.2341,3935.6,3932.1,0.6336]
[1760869842457,0.2341,3935.6,3934.1,4.6]
[1760869842600,0.2341,3935.6,3934.6,2.5414997]
[1760869842806,0.2341,3935.6,3934.7,2.54147033]
[1760869843135,0.2341,3935.6,3934.2,2.863]
[1760869843136,0.2341,3935.6,3934.2,5.40478713]
[1760869843432,0.2341,3935.6,3934.8,4.6]
[1760869843801,0.2341,3935.6,3934.9,2.914]
[1760869844533,0.02537441,3935.5,3934.9,2.914]
[1760869844738,0.02537441,3935.8,3935.0,2.54128135]
[1760869844928,0.02537441,3935.8,3934.9,3.6654]
[1760869845103,0.2341,3936.0,3934.9,3.6654]
[1760869845303,0.2341,3936.0,3934.9,6.20670519]
[1760869845503,0.02537441,3935.9,3934.9,2.914]
[1760869845703,0.2341,3936.0,3935.1,2.54122737]
[1760869845941,0.2341,3936.0,3934.9,2.914]
[1760869846105,0.2341,3936.0,3935.1,2.54120677]
[1760869846306,0.2341,3936.0,3935.4,2.54103673]
[1760869846530,0.2341,3936.1,3935.4,2.54103673]
[1760869846531,0.2341,3936.1,3935.4,0.25410367]
[1760869847036,0.2341,3936.1,3935.1,2.54117231]
[1760869847346,0.2341,3936.1,3933.6,0.6336]
[1760869847347,0.6336,3932.9,3931.8,0.002]
[1760869847530,1.728,3932.6,3931.8,0.002]
[1760869847718,0.02537441,3932.7,3931.8,0.002]
[1760869847909,2.3616,3932.3,3931.8,0.002]
[1760869848110,1.728,3932.5,3931.8,0.002]
[1760869848407,0.02537441,3932.2,3931.8,0.002]
[1760869848754,2.54278231,3932.7,3931.8,7.14536081]
[1760869848755,0.02537441,3932.7,3931.8,7.14536081]
[1760869849055,0.6336,3933.1,3931.8,7.69311569]
[1760869849555,1.728,3933.0,3931.8,7.69311569]
[1760869849850,2.54258835,3933.0,3931.8,5.14975476]
[1760869850031,1.728,3932.9,3931.8,4.602]
[1760869850341,0.1264,3932.2,3931.8,7.528]
[1760869850546,0.1264,3932.2,3931.8,10.07134816]
[1760869851421,0.1264,3932.2,3931.8,0.002]
[1760869851617,0.1264,3932.2,3931.9,2.925]
[1760869851818,0.1264,3932.4,3931.9,3.2177]
[1760869852144,2.54136064,3934.9,3932.4,2.3616]
[1760869852306,2.54125063,3935.1,3932.5,0.366]
[1760869852507,1.728,3935.1,3933.8,2.54207127]
[1760869852841,1.9621,3935.0,3933.9,2.928]
[1760869853046,0.2341,3935.0,3933.9,7.228]
[1760869853539,0.2341,3935.0,3934.2,2.54176615]
[1760869853740,3.24265233,3935.4,3934.2,2.54176615]
[1760869853741,3.24265233,3935.4,3934.2,2.54177877]
[1760869853949,2.54135306,3935.0,3934.3,2.925]
[1760869854144,0.25947441,3934.9,3934.3,2.925]
[1760869854443,0.02537441,3934.9,3934.3,2.925]
[1760869855061,1.9621,3934.8,3934.3,2.925]
[1760869855245,0.02537441,3934.7,3934.3,2.925]
[1760869855964,1.728,3935.0,3934.3,2.925]
[1760869856177,0.4675,3935.1,3934.3,2.925]
[1760869856337,3.00873846,3935.1,3934.3,2.925]
[1760869856538,1.728,3934.9,3934.3,2.925]
[1760869856739,0.02537441,3934.8,3934.3,2.925]
[1760869857465,0.4675,3934.7,3932.8,1.728]
[1760869857761,0.02537441,3934.6,3933.6,2.54214099]
[1760869857966,2.56696394,3934.6,3933.6,2.54214099]
[1760869858163,2.56696394,3934.6,3933.7,4.3]
[1760869858469,2.56696394,3934.6,3933.8,2.913]
[1760869858470,2.56692964,3934.6,3933.8,2.913]
[1760869858768,0.4675,3934.7,3933.8,2.913]
[1760869858769,0.2341,3934.9,3933.8,2.913]
[1760869859063,1.728,3934.8,3933.9,6.84200666]
[1760869859369,1.728,3934.8,3934.0,2.54192651]
[1760869859666,0.2341,3934.9,3933.8,2.913]
[1760869859861,0.6336,3935.2,3934.1,2.54184858]
[1760869859862,2.54123152,3935.1,3934.1,2.54184858]
[1760869860064,2.54130938,3935.0,3934.2,4.3]
[1760869860266,1.728,3934.8,3934.2,4.3]
[1760869860470,0.02537441,3934.7,3934.2,4.3]
[1760869860643,2.541233,3935.1,3934.3,0.183]
[1760869860843,0.02537441,3935.0,3934.2,6.84179972]
[1760869861054,1.728,3935.1,3934.3,5.44774049]
[1760869861369,2.54110757,3935.3,3934.3,2.54174049]
[1760869861570,0.7016,3935.4,3934.5,2.54161191]
[1760869861571,2.4296,3935.4,3934.5,2.54161191]
[1760869861734,0.7016,3935.4,3934.6,2.904]
[1760869861935,0.1264,3934.9,3934.6,2.904]
[1760869862652,1.8544,3934.9,3934.6,2.904]
[1760869862965,1.8544,3934.9,3934.7,2.901]
[1760869862966,0.02537441,3934.8,3934.7,2.901]
[1760869863271,0.1264,3934.9,3934.7,2.901]
[1760869863781,0.15177441,3934.9,3934.7,2.9]
[1760869864633,1.87977441,3934.9,3934.7,2.898]
[1760869864969,0.15277441,3934.9,3934.7,2.896]
[1760869865171,0.1274,3934.9,3934.7,7.196]
[1760869865367,0.02537441,3934.8,3934.7,7.196]
[1760869865690,0.1274,3934.9,3934.7,7.196]
[1760869865691,0.001,3934.9,3934.7,7.196]
[1760869865976,0.001,3934.9,3934.8,2.54142523]
[1760869866268,0.001,3934.9,3934.7,7.196]
[1760869867270,0.001,3934.9,3934.8,2.54142523]
[1760869867471,0.001,3934.9,3934.8,2.90742523]
[1760869867638,0.001,3934.9,3934.8,5.79542523]
[1760869867839,0.001,3934.9,3934.8,7.07176299]
[1760869868040,0.001,3934.9,3934.8,7.19816299]
[1760869868566,0.001,3934.9,3934.8,4.31016299]
[1760869868759,0.001,3934.9,3934.8,7.19516299]
[1760869869068,0.001,3934.9,3934.8,5.55282523]
[1760869869274,0.001,3934.9,3934.8,5.91882523]
[1760869869773,0.001,3934.9,3934.8,3.0114]
[1760869870146,0.001,3934.9,3934.8,3.0074]
[1760869870348,0.001,3934.9,3934.8,5.54882523]
[1760869870560,0.001,3934.9,3934.8,9.84882523]
[1760869871078,0.001,3934.9,3934.8,13.71882523]
[1760869873786,0.001,3934.9,3934.8,14.08482523]
[1760869873996,0.001,3934.9,3934.8,15.74746164]
[1760869875370,0.001,3934.9,3934.8,14.08482523]
[1760869875654,0.001,3934.9,3934.8,13.71882523]
[1760869877161,0.001,3934.9,3934.8,9.84882523]
[1760869877368,0.001,3934.9,3934.8,10.08842523]
[1760869877567,0.001,3934.9,3934.8,9.70342523]
[1760869877920,0.001,3934.9,3934.8,10.92792164]
[1760869878067,0.001,3934.9,3934.8,7.161]
[1760869878264,0.001,3934.9,3934.0,0.183]
[1760869878265,0.6629,3934.9,3934.0,0.183]
[1760869878521,0.02537441,3934.8,3932.8,0.366]
[1760869878668,0.02537441,3934.8,3932.9,1.653]
[1760869878864,0.02537441,3934.8,3933.6,4.3]
[1760869879170,2.54198655,3934.0,3933.6,4.3]
[1760869879379,0.2163,3933.7,3933.6,4.3]
[1760869879608,0.6619,3933.7,3932.4,0.366]
[1760869879812,2.54258475,3933.1,3932.1,0.183]
[1760869880117,0.02537441,3933.0,3932.2,4.3]
[1760869880325,0.2163,3932.3,3931.8,0.002]
[1760869880965,0.02537441,3932.5,3931.8,0.002]
[1760869881165,0.4456,3933.4,3932.2,2.72610378]
[1760869881166,4.0556,3933.4,3932.2,2.72610378]
[1760869881368,0.2163,3932.3,3931.8,0.002]
[1760869881581,0.2163,3932.6,3931.8,0.002]
[1760869881770,2.56834489,3932.5,3931.8,0.002]
[1760869881967,0.02537441,3932.5,3931.8,0.002]
[1760869882405,0.34838817,3932.5,3932.1,0.002]
[1760869882608,2.54310564,3932.2,3932.1,0.002]
[1760869882808,0.02537441,3932.2,3932.1,0.002]
[1760869883110,3.01408005,3932.2,3932.1,0.002]
[1760869883266,4.74208005,3932.2,3932.1,0.002]
[1760869883471,5.37568005,3932.2,3932.1,0.002]
[1760869883670,2.96546872,3932.2,3932.1,0.002]
[1760869883870,7.57370564,3932.2,3932.1,0.002]
[1760869884112,2.1736,3932.2,3932.1,0.002]
[1760869884272,0.2163,3932.6,3932.1,0.002]
[1760869884273,0.02537441,3932.5,3932.1,0.002]
[1760869884882,0.2163,3932.6,3932.2,2.54310564]
[1760869885089,1.9443,3932.8,3932.1,0.002]
[1760869885297,0.4456,3932.6,3932.1,0.002]
[1760869885503,0.02537441,3932.5,3932.1,0.002]
[1760869885899,0.02537441,3932.7,3932.3,2.54302226]
[1760869886186,0.6619,3933.2,3932.1,0.185]
[1760869886187,0.2163,3933.2,3932.1,0.185]
[1760869886385,0.2163,3933.2,3932.2,2.54310564]
[1760869886592,0.02537441,3933.1,3932.1,0.185]
[1760869886891,0.02537441,3933.1,3932.4,4.3]
[1760869887221,0.2163,3933.2,3932.4,5.00280347]
[1760869887424,0.15177441,3933.5,3932.9,0.1264]
[1760869887829,0.16960143,3934.6,3932.4,2.54297629]
[1760869888119,0.16960143,3934.6,3932.3,2.851]
[1760869888120,0.16960143,3934.6,3933.0,0.366]
[1760869888324,0.47097441,3934.5,3933.6,4.2]
[1760869888652,0.2163,3933.7,3933.6,4.2]
[1760869888827,0.02537441,3934.3,3933.6,4.2]
[1760869889627,0.02537441,3934.3,3933.8,2.54206065]
[1760869889824,0.02537441,3934.4,3933.6,4.2]
[1760869890024,2.54174821,3934.3,3933.6,4.2]
[1760869890192,2.56719164,3934.2,3933.6,4.2]
[1760869890592,0.2163,3933.7,3932.8,2.54270789]
[1760869890792,1.728,3934.3,3932.9,0.366]
[1760869891006,0.04428612,3934.6,3932.9,0.366]
[1760869891229,0.04428612,3934.6,3934.2,0.183]
[1760869891425,0.04428612,3934.6,3934.5,2.54161901]
[1760869891927,0.001,3934.9,3934.8,2.54142523]
[1760869892521,0.001,3934.9,3934.8,2.90742523]
[1760869892723,0.001,3934.9,3934.5,2.844]
[1760869893047,0.6619,3934.8,3934.0,5.38394148]
[1760869893238,0.02637441,3934.9,3934.0,2.842]
[1760869893420,0.001,3934.9,3934.7,2.54145437]
[1760869893621,0.001,3934.9,3934.1,0.3025]
[1760869894033,0.001,3934.9,3934.5,2.54156159]
[1760869894234,0.001,3934.9,3934.6,2.54155058]
[1760869894447,0.001,3934.9,3934.5,2.54159962]
[1760869894642,0.001,3934.9,3934.7,2.54147445]
[1760869895433,0.001,3934.9,3934.2,0.366]
[1760869895633,0.001,3934.9,3934.8,2.54142523]
[1760869896051,0.001,3934.9,3934.7,2.5414823]
[1760869896348,0.001,3934.9,3934.8,2.54142523]
[1760869897651,0.001,3934.9,3934.6,2.54155317]
[1760869897822,0.001,3934.9,3934.8,2.54142523]
[1760869898145,0.001,3934.9,3934.8,3.11586775]
[1760869898346,0.001,3934.9,3934.8,3.60826775]
[1760869898547,0.001,3934.9,3934.8,2.66782523]
[1760869898748,0.001,3934.9,3934.8,3.03382523]
[1760869900525,0.001,3934.9,3934.8,2.66782523]
[1760869900744,0.001,3934.9,3934.8,3.03382523]
[1760869901176,0.001,3934.9,3934.8,2.66782523]
[1760869901660,0.001,3934.9,3934.8,3.83785725]
[1760869903434,0.001,3935.3,3935.0,2.54129606]
[1760869903622,0.001,3935.3,3935.1,6.693]
[1760869903817,0.001,3935.3,3935.2,2.6675669]
[1760869904135,0.001,3935.3,3935.2,3.0335669]
[1760869904446,0.001,3935.3,3935.2,3.8943532]
[1760869904650,0.001,3935.3,3935.2,2.6675669]
[1760869907837,0.001,3935.3,3935.2,4.3675669]
[1760869908037,0.001,3935.3,3935.2,1.7]
[1760869908256,0.4373,3935.3,3934.5,2.815]
[1760869908461,0.001,3935.3,3934.5,5.3566169]
[1760869908634,0.001,3935.3,3934.6,0.53586169]
[1760869908954,0.001,3935.3,3934.9,2.54134854]
[1760869909253,0.001,3935.3,3935.0,1.2]
[1760869909926,0.001,3935.3,3935.1,2.54121401]
[1760869910139,0.001,3935.3,3935.2,2.5411669]
[1760869910537,0.001,3935.3,3935.2,1.2]
[1760869910749,0.001,3935.3,3935.2,3.7411669]
[1760869912987,0.001,3935.3,3935.2,1.2]
[1760869913288,0.001,3935.3,3934.9,2.815]
[1760869913492,0.001,3935.3,3935.1,2.54122812]
[1760869913985,0.001,3935.3,3935.2,2.5411669]
[1760869914492,0.001,3935.3,3934.9,2.815]
[1760869914690,0.001,3935.3,3935.1,2.54119834]
[1760869914860,0.001,3935.3,3934.9,2.815]
[1760869915195,0.001,3935.3,3935.0,2.54124209]
[1760869915580,0.001,3935.3,3935.1,2.54121256]
[1760869915782,0.4363,3935.2,3934.1,3.869]
[1760869915959,0.4363,3935.2,3934.5,2.54161901]
[1760869916160,0.02537441,3935.1,3934.5,2.54161607]
[1760869916489,2.54211907,3935.3,3934.4,2.805]
[1760869916490,0.001,3935.3,3934.4,2.805]
[1760869916694,0.2142,3934.5,3934.4,2.805]
[1760869916855,0.6505,3934.5,3934.4,0.002]
[1760869917459,3.19211901,3934.5,3934.4,0.002]
[1760869917675,0.6505,3934.5,3934.4,0.002]
[1760869917902,3.19211901,3934.5,3934.4,0.002]
[1760869918071,0.7769,3934.5,3934.4,0.002]
[1760869918266,3.90704509,3934.5,3934.4,0.002]
[1760869918590,3.31851901,3934.5,3934.4,0.002]
[1760869919180,5.04651901,3934.5,3934.4,0.002]
[1760869919582,2.0686,3934.5,3934.4,0.002]
[1760869919812,0.2142,3934.5,3934.4,0.002]
[1760869920032,0.6505,3934.5,3934.4,0.002]
[1760869920524,3.53923754,3934.5,3934.4,0.002]
[1760869920677,0.99761853,3934.5,3934.4,0.002]
[1760869920879,3.53923754,3934.5,3934.4,0.002]
[1760869921110,0.99761853,3934.5,3934.4,0.002]
[1760869921305,3.53923754,3934.5,3934.4,0.002]
[1760869923008,6.33823754,3934.5,3934.4,0.002]
[1760869923198,6.31286313,3934.5,3934.4,0.002]
[1760869923400,8.04086313,3934.5,3934.4,0.002]
[1760869923578,8.67446313,3934.5,3934.4,0.002]
[1760869923785,5.87546313,3934.5,3934.4,0.002]
[1760869923990,5.49324412,3934.5,3934.4,0.002]
[1760869924321,8.66846313,3934.5,3934.4,0.002]
[1760869924685,2.70024412,3934.5,3934.4,0.002]
[1760869924919,1.728,3934.5,3934.4,0.002]
[1760869925129,0.2316,3934.8,3934.4,0.002]
[1760869925498,0.2316,3934.8,3934.5,2.54161191]
[1760869925702,0.04427919,3935.0,3934.5,2.54161901]
[1760869925905,0.04427919,3935.0,3934.9,2.54136064]
[1760869926129,0.001,3935.3,3934.7,2.54143448]
[1760869926349,0.001,3935.3,3934.5,2.54156682]
[1760869926350,1.729,3935.3,3934.5,2.54161118]
[1760869926644,0.02537441,3935.2,3934.7,2.54148161]
[1760869926851,0.001,3935.3,3934.4,0.002]
[1760869927155,0.001,3935.3,3934.7,2.5414435]
[1760869927445,0.001,3935.3,3934.4,2.791]
[1760869927620,0.001,3935.3,3934.4,3.157]
[1760869927831,0.001,3935.3,3935.1,2.54117265]
[1760869928155,0.001,3935.3,3934.4,3.157]
[1760869928324,0.001,3935.3,3935.0,2.5412446]
[1760869928517,0.001,3935.3,3935.2,2.5411669]
[1760869928718,0.001,3935.3,3935.1,2.54122009]
[1760869928914,0.001,3935.3,3934.4,5.3326798]
[1760869929130,0.001,3935.3,3934.4,3.157]
[1760869929336,0.001,3935.3,3934.5,0.3157]
[1760869929530,0.001,3935.3,3935.2,2.5411669]
[1760869929721,0.001,3935.3,3935.1,2.66757662]
[1760869929921,0.001,3935.3,3935.1,2.66756934]
[1760869930141,0.001,3935.3,3935.1,0.1264]
[1760869930518,0.001,3935.3,3934.9,2.54135584]
[1760869930718,0.001,3935.3,3935.2,2.5411669]
[1760869931834,0.4353,3935.3,3934.9,0.1264]
[1760869932033,0.4353,3935.3,3934.8,3.869]
[1760869932034,0.1264,3935.2,3934.8,3.869]
[1760869932223,0.001,3935.3,3935.0,0.1264]
[1760869933623,0.001,3935.3,3935.0,2.66769203]
[1760869933889,0.001,3935.3,3935.0,0.1264]
[1760869934018,0.001,3935.3,3935.0,2.66769231]
[1760869934222,0.001,3935.3,3935.0,0.1264]
[1760869934660,0.001,3935.3,3935.1,2.54123148]
[1760869935166,0.001,3935.3,3935.0,2.66769577]
[1760869935468,0.001,3935.3,3935.0,0.1264]
[1760869937670,0.001,3935.3,3934.7,2.781]
[1760869937875,0.1264,3935.2,3934.7,2.781]
[1760869938377,0.001,3935.3,3934.7,2.781]
[1760869938545,0.001,3935.3,3935.0,2.66764128]
[1760869938877,0.001,3935.3,3935.0,0.1264]
[1760869939488,0.001,3935.3,3934.5,0.002]
[1760869939779,0.2156,3934.6,3934.5,0.002]
[1760869940081,3.21682882,3934.6,3934.5,0.002]
[1760869940289,3.79265549,3934.6,3934.5,0.002]
[1760869940497,0.57582667,3934.6,3934.5,0.002]
[1760869940660,0.1264,3934.6,3934.5,0.002]
[1760869940850,0.5607,3934.6,3934.5,0.002]
[1760869941294,0.1264,3934.6,3934.5,0.002]
[1760869941696,3.10225441,3934.6,3934.5,0.002]
[1760869942290,3.60945441,3934.6,3934.5,0.002]
[1760869942489,4.52330611,3934.6,3934.5,0.002]
[1760869943174,4.54868052,3934.6,3934.5,0.002]
[1760869943494,0.02537441,3934.6,3934.5,0.002]
[1760869943694,0.4343,3934.6,3934.5,0.002]
[1760869943845,3.63482882,3934.6,3934.5,0.002]
[1760869944949,0.4343,3934.6,3934.5,0.002]
[1760869945160,5.74285441,3934.6,3934.5,0.002]
[1760869945365,6.65620353,3934.6,3934.5,0.002]
[1760869945773,4.11464912,3934.6,3934.5,0.002]
[1760869945977,5.76822882,3934.6,3934.5,0.002]
[1760869946178,5.74285441,3934.6,3934.5,0.002]
[1760869946472,3.2003,3934.6,3934.5,0.002]
[1760869946682,5.76522882,3934.6,3934.5,0.002]
[1760869946999,2.764,3934.6,3934.5,0.002]
[1760869947210,2.78937441,3934.6,3934.5,0.002]
[1760869947565,5.33092882,3934.6,3934.5,0.002]
[1760869947763,2.764,3934.6,3934.5,0.002]
[1760869948085,3.30701166,3934.6,3934.5,0.002]
[1760869948591,2.78937441,3934.6,3934.5,0.002]
[1760869949171,2.764,3934.6,3934.5,0.002]
[1760869950200,5.33092882,3934.6,3934.5,0.002]
[1760869950361,2.764,3934.6,3934.5,0.002]
[1760869950562,0.02537441,3934.6,3934.5,0.002]
[1760869950790,2.764,3934.7,3934.5,0.002]
[1760869952002,5.3055051,3934.7,3934.5,0.002]
[1760869952165,3.00122882,3934.6,3934.5,0.002]
[1760869954101,2.56692882,3934.6,3934.5,0.002]
[1760869954606,0.1264,3934.6,3934.5,0.002]
[1760869955386,2.54123158,3935.1,3934.5,4.3634]
[1760869955387,0.1264,3935.1,3934.5,4.3634]
[1760869955613,0.001,3935.2,3934.5,3.871]
[1760869955793,0.02637441,3935.2,3934.5,3.871]
[1760869955975,0.02637441,3935.2,3934.5,6.41260988]
[1760869956175,0.02637441,3935.2,3934.6,2.54155441]
[1760869956380,0.001,3935.2,3934.7,2.54145743]
[1760869956575,0.001,3935.2,3934.7,2.54142954]
[1760869956832,0.001,3935.2,3934.8,2.54140095]
[1760869957678,0.001,3935.2,3934.9,0.366]
[1760869958006,0.001,3935.2,3935.1,2.54123148]
[1760869958199,0.001,3935.2,3935.0,0.366]
[1760869958510,0.001,3935.2,3935.1,2.54123148]
[1760869958888,0.001,3935.2,3935.0,0.366]
[1760869959292,0.001,3935.2,3935.0,2.90727626]
[1760869959686,0.001,3935.2,3934.7,2.54146418]
[1760869960292,0.001,3935.2,3934.8,2.90741738]
[1760869960491,0.001,3935.2,3934.8,1.29800184]
[1760869960696,0.001,3935.2,3935.1,2.54123148]
[1760869962725,0.001,3935.2,3935.1,6.41023148]
[1760869963181,0.001,3935.2,3935.1,3.869]
[1760869964519,0.441,3935.2,3934.5,0.002]
[1760869964818,2.56666814,3935.1,3934.5,0.002]
[1760869965120,0.02537441,3935.1,3934.5,2.5435945]
[1760869965415,0.001,3935.2,3934.7,2.54145911]
[1760869965622,0.001,3935.2,3934.7,0.1264]
[1760869965789,0.001,3935.2,3934.8,2.54142523]
[1760869966113,0.001,3935.2,3934.7,0.1264]
[1760869966314,0.02637441,3935.2,3934.7,0.1264]
[1760869966715,0.001,3935.2,3934.8,2.54142341]